bitfinex/quotes_ETHUSD_20240819
["timestamp","ask_amount","ask_price","bid_price","bid_amount"]
[1724036171022,2.71731796,2645.3,2644.6,2.64682]
[1724036171346,0.07111796,2645.3,2644.6,2.64682]
[1724036171748,3.96133576,2645.3,2644.6,2.64682]
[1724036172070,2.64634,2645.2,2644.5,4.90794]
[1724036172372,0.07114421,2645.1,2644.5,4.90794]
[1724036172676,5.06036,2644.9,2644.2,4.90953]
[1724036172866,5.06036,2644.9,2644.3,2.64713]
[1724036172867,2.4137,2644.9,2644.3,2.64713]
[1724036173164,0.07092339,2644.8,2644.3,2.64713]
[1724036173328,0.07092339,2644.8,2644.4,2.64707]
[1724036173531,2.64658,2645.0,2644.4,2.64707]
[1724036173783,0.070997,2644.9,2644.4,2.64707]
[1724036174630,2.4137,2645.1,2644.7,2.64679]
[1724036175069,0.07105598,2645.0,2644.7,2.64679]
[1724036175434,0.07105598,2645.0,2644.7,4.91639]
[1724036175636,5.02455,2645.4,2644.7,4.91639]
[1724036175881,0.07127677,2645.3,2644.7,4.91639]
[1724036176049,1.30985945,2645.3,2644.7,4.91639]
[1724036176753,1.30985945,2645.3,2644.7,4.91633]
[1724036177691,0.07127677,2645.3,2644.8,2.64667]
[1724036177894,14.59280791,2645.7,2644.8,2.64667]
[1724036178257,2.2741,2645.4,2644.7,2.2696]
[1724036178592,0.95641,2645.3,2644.8,2.6467]
[1724036179597,0.95641,2645.3,2644.7,2.64679]
[1724036180508,0.95641,2645.3,2644.8,2.64668]
[1724036180791,4.92026,2645.4,2644.8,2.64668]
[1724036181261,0.07131921,2645.3,2644.8,2.64668]
[1724036181863,0.07131921,2645.3,2644.9,2.64658]
[1724036182797,0.07131921,2645.3,2644.8,7.69082]
[1724036183175,0.07131921,2645.3,2644.9,2.64656]
[1724036184174,0.07131921,2645.3,2644.6,2.64685]
[1724036184402,1.29946113,2645.3,2644.7,2.64676]
[1724036184564,0.07131921,2645.3,2644.9,2.64658]
[1724036185077,0.07125002,2645.2,2644.9,2.64658]
[1724036185318,9.93606,2645.5,2644.9,2.64658]
[1724036185494,1.30529119,2645.4,2644.9,2.64658]
[1724036186493,1.608,2645.2,2644.9,2.64658]
[1724036186691,0.07117642,2645.1,2644.9,2.64658]
[1724036187863,0.07117642,2645.1,2644.7,4.91586]
[1724036188102,0.07117642,2645.1,2644.7,7.56258]
[1724036188294,0.07117642,2645.1,2644.8,2.64666]
[1724036188694,0.07117642,2645.1,2644.7,4.91582]
[1724036188907,0.07117642,2645.1,2644.9,2.64659]
[1724036190570,0.07117642,2645.1,2644.7,4.91582]
[1724036191228,0.07117642,2645.1,2644.8,2.4019]
[1724036191371,0.07117642,2645.1,2645.0,7.6949]
[1724036191570,0.07440791,2645.7,2645.4,2.64607]
[1724036192049,0.06915167,2645.6,2645.5,2.646]
[1724036193221,0.06915167,2645.6,2645.5,5.292]
[1724036193719,0.07440791,2645.7,2645.6,2.6459]
[1724036194492,0.14357662,2645.7,2645.6,2.6459]
[1724036198819,0.14357662,2645.7,2645.6,5.0724]
[1724036200114,0.14357662,2645.7,2645.6,2.6459]
[1724036202648,0.14357662,2645.7,2645.6,5.2918]
[1724036202824,0.14357662,2645.7,2645.6,7.6333]
[1724036203348,0.07440791,2645.7,2645.6,7.6333]
[1724036206570,0.07440791,2645.7,2645.6,7.70887981]
[1724036206700,0.00509897,2645.7,2645.6,7.6333]
[1724036207065,2.2557,2646.4,2645.8,2.64561]
[1724036207254,2.2557,2646.4,2645.9,0.264561]
[1724036207455,0.06698137,2646.3,2645.8,2.64561]
[1724036207800,0.06698137,2646.3,2645.9,2.6456]
[1724036208498,2.71218137,2646.3,2645.7,2.64571]
[1724036208706,0.06698137,2646.3,2645.8,2.64567]
[1724036210267,0.06698137,2646.3,2646.0,2.64549]
[1724036210654,0.06698137,2646.3,2645.9,5.29112]
[1724036210958,0.06698137,2646.3,2645.9,2.64553]
[1724036211326,0.06698137,2646.3,2645.9,3.03296288]
[1724036213130,0.06698137,2646.3,2646.0,2.64549]
[1724036213335,0.06698137,2646.3,2645.9,2.64559]
[1724036213922,0.06698137,2646.3,2645.9,2.64553]
[1724036214324,0.06698137,2646.3,2645.9,5.29106]
[1724036214649,1.607,2646.2,2645.9,2.64553]
[1724036215025,0.06709026,2646.1,2645.9,2.64553]
[1724036215647,0.06709026,2646.1,2646.0,2.6455]
[1724036215853,0.06709026,2646.1,2645.9,2.64553]
[1724036216729,1.607,2646.3,2645.9,2.64553]
[1724036216929,0.06715249,2646.2,2645.9,2.64553]
[1724036217327,2.3378,2646.0,2645.5,2.64594]
[1724036217528,1.607,2645.8,2645.5,2.64594]
[1724036217777,0.06680821,2645.7,2645.5,2.64594]
[1724036217927,1.607,2645.8,2645.5,2.64594]
[1724036218127,0.06680774,2645.7,2645.5,2.64594]
[1724036218332,1.607,2645.8,2645.3,2.64615]
[1724036218533,1.607,2645.8,2645.1,3.0]
[1724036218534,4.0459,2645.6,2645.1,5.00183]
[1724036218761,0.06692038,2645.5,2645.1,5.00183]
[1724036219326,4.0459,2645.8,2645.3,2.64618]
[1724036219453,0.06677021,2645.4,2645.3,2.64618]
[1724036219621,6.69162,2645.8,2645.1,7.64815]
[1724036219821,0.06677021,2645.4,2645.1,7.64815]
[1724036220078,6.69162,2645.8,2645.2,2.64627]
[1724036220282,0.06669663,2645.3,2645.2,2.64627]
[1724036220790,5.08462,2645.8,2645.2,2.64627]
[1724036221010,0.06630089,2645.3,2645.2,2.6463]
[1724036221145,0.06630089,2645.3,2645.1,2.3555]
[1724036221146,4.919,2645.6,2645.0,2.64643]
[1724036221536,0.06653085,2645.5,2645.0,2.64643]
[1724036222747,0.06653085,2645.5,2645.2,2.64623]
[1724036222956,0.06653085,2645.5,2645.0,2.64646]
[1724036222957,2.71254085,2645.5,2645.0,2.64646]
[1724036223596,0.06653085,2645.5,2645.0,2.64642]
[1724036225824,0.06653085,2645.5,2645.2,2.6463]
[1724036226821,0.06653085,2645.5,2645.4,2.6461]
[1724036227264,7.29,2645.9,2645.5,2.64595]
[1724036228699,0.06677588,2645.8,2645.5,2.64595]
[1724036230724,0.06677588,2645.8,2645.5,5.29189]
[1724036230906,0.06677588,2645.8,2645.6,2.64582]
[1724036231411,0.06677588,2645.8,2645.5,5.29184]
[1724036231777,0.06677588,2645.8,2645.5,2.64591]
[1724036232203,5.1215,2646.1,2645.5,2.64591]
[1724036232414,0.06649805,2645.7,2645.5,2.64591]
[1724036232714,5.1215,2646.1,2645.6,0.264591]
[1724036233014,0.06671877,2646.0,2645.5,2.64591]
[1724036236429,0.06671877,2646.0,2645.6,2.64584]
[1724036236665,0.06671877,2646.0,2645.7,5.01093]
[1724036236969,2.3615,2646.5,2645.9,2.64551]
[1724036237174,5.00651,2646.5,2645.9,2.64551]
[1724036237471,5.00651,2646.5,2645.9,5.29104]
[1724036237837,5.00651,2646.5,2645.9,2.64551]
[1724036238155,5.00651,2646.5,2645.9,5.29104]
[1724036238944,2.7730811,2646.6,2646.1,2.64537]
[1724036239269,2.7730711,2646.6,2646.1,2.64537]
[1724036239567,0.067088,2646.5,2646.1,2.64537]
[1724036239758,0.067088,2646.5,2646.0,2.3652]
[1724036239919,0.067088,2646.5,2646.0,2.866271]
[1724036241072,0.067088,2646.5,2646.0,5.511731]
[1724036241279,2.4713,2646.2,2645.5,2.64598]
[1724036241427,5.11662,2646.2,2645.6,2.64586]
[1724036241622,0.06681786,2646.1,2645.7,2.6458]
[1724036241926,0.06681786,2646.1,2645.7,2.64572]
[1724036243728,0.06681786,2646.1,2645.7,5.29146]
[1724036243928,0.06681786,2646.1,2645.7,7.78256]
[1724036244190,2.64522,2646.3,2645.7,5.13682]
[1724036244397,0.06689141,2646.2,2645.7,5.13682]
[1724036246084,4.93442,2646.4,2645.7,5.13682]
[1724036246246,0.06681786,2646.1,2645.7,5.13682]
[1724036246448,2.2893,2646.5,2645.9,2.64552]
[1724036246644,0.06672025,2646.0,2645.9,2.64552]
[1724036246907,2.2893,2646.5,2645.9,2.64552]
[1724036247047,0.06672855,2646.0,2645.9,2.64552]
[1724036247249,4.93431,2646.5,2645.9,2.64552]
[1724036247490,0.06672855,2646.0,2645.9,2.64552]
[1724036248094,2.2893,2646.5,2645.9,2.64552]
[1724036248303,0.06672855,2646.0,2645.9,2.64552]
[1724036248484,2.2893,2646.5,2645.9,2.64552]
[1724036248795,4.9343,2646.5,2645.9,2.64552]
[1724036249000,0.06702276,2646.4,2645.9,2.64552]
[1724036249415,3.48956515,2646.4,2645.8,2.64563]
[1724036249693,2.4457,2646.3,2645.8,2.64563]
[1724036250059,0.06690311,2646.2,2645.8,2.64563]
[1724036250518,2.71224311,2646.2,2645.6,2.64586]
[1724036251296,5.35761311,2646.2,2645.6,2.64586]
[1724036251500,2.64557,2646.0,2645.4,2.64605]
[1724036252038,0.06697534,2645.9,2645.4,2.64605]
[1724036255821,2.3587,2645.8,2645.2,2.64624]
[1724036256448,0.06682088,2645.7,2645.2,2.64624]
[1724036256996,0.06682088,2645.7,2645.2,2.64622]
[1724036257304,0.06682088,2645.7,2645.3,2.64618]
[1724036257918,2.3587,2645.8,2645.3,2.64618]
[1724036258119,0.06673561,2645.6,2645.3,2.64618]
[1724036258347,0.06680918,2645.7,2645.3,2.64618]
[1724036258546,0.06665423,2645.5,2645.3,2.64618]
[1724036258704,5.00427,2646.0,2645.4,2.64609]
[1724036260044,0.06694851,2645.9,2645.4,2.64609]
[1724036260445,2.71255851,2645.9,2645.2,5.29244]
[1724036260940,2.71255851,2645.9,2645.3,2.64618]
[1724036262958,2.6459,2645.6,2645.1,2.64636]
[1724036263450,0.06675412,2645.5,2645.1,2.64636]
[1724036264708,0.06675412,2645.5,2645.2,2.64629]
[1724036264942,2.4718,2645.7,2645.2,2.64629]
[1724036265152,0.06661374,2645.4,2645.3,2.6462]
[1724036265358,2.3713,2645.9,2645.4,2.64603]
[1724036265560,5.3713,2646.1,2645.5,2.64598]
[1724036265770,14.9130811,2646.6,2646.0,2.64543]
[1724036265771,2.3713,2646.5,2646.0,2.64543]
[1724036267517,2.3713,2646.5,2646.1,2.64538]
[1724036268170,0.1281711,2646.6,2646.2,2.64529]
[1724036268678,0.1281711,2646.6,2646.1,3.145113]
[1724036269164,0.1281711,2646.6,2646.1,3.145053]
[1724036269323,0.1281711,2646.6,2646.1,5.790373]
[1724036269648,0.1281711,2646.6,2646.1,3.145053]
[1724036270053,0.06707207,2646.5,2646.1,3.145053]
[1724036270381,0.06707207,2646.5,2645.9,4.99686]
[1724036270703,0.06707207,2646.5,2646.0,2.64545]
[1724036273045,2.3128,2646.4,2645.9,4.99683]
[1724036273359,2.3128,2646.4,2645.9,5.496513]
[1724036273565,0.06692499,2646.3,2645.9,5.496513]
[1724036273865,0.06692499,2646.3,2646.0,2.64549]
[1724036274300,0.06692499,2646.3,2645.9,5.496513]
[1724036274301,0.06692499,2646.3,2646.1,2.64537]
[1724036274452,0.06692499,2646.3,2646.2,0.264537]
[1724036274653,5.0859011,2646.6,2646.2,0.264537]
[1724036274853,0.06692499,2646.3,2646.2,0.264537]
[1724036275096,2.4409711,2646.6,2646.2,0.264537]
[1724036275297,0.06692499,2646.3,2646.2,0.264537]
[1724036275800,2.4409711,2646.6,2646.2,0.264537]
[1724036275969,0.06707207,2646.5,2646.2,0.264537]
[1724036278759,0.06707207,2646.5,2646.2,2.909827]
[1724036279096,0.06707207,2646.5,2646.2,2.64529]
[1724036279685,0.06707207,2646.5,2646.2,5.13859]
[1724036279888,0.06707207,2646.5,2646.3,2.64511]
[1724036280070,0.06707207,2646.5,2646.4,2.6451]
[1724036282177,0.06707207,2646.5,2646.2,2.4933]
[1724036282377,0.06707207,2646.5,2646.2,5.38787]
[1724036282683,0.06707207,2646.5,2646.3,2.64514]
[1724036282888,0.06707207,2646.5,2646.4,2.6451]
[1724036287802,0.06707207,2646.5,2646.4,5.0552]
[1724036289293,0.06707207,2646.5,2646.4,2.4101]
[1724036289619,0.06707207,2646.5,2646.2,2.64524]
[1724036289816,1.67307207,2646.5,2646.2,2.64524]
[1724036290445,1.67307207,2646.5,2646.1,2.4101]
[1724036291244,4.31807207,2646.5,2646.0,2.64543]
[1724036291452,4.0322,2646.3,2645.8,5.29124]
[1724036291606,4.0322,2646.3,2645.9,2.64557]
[1724036292005,0.06668786,2646.2,2645.9,2.64557]
[1724036292559,0.06668786,2646.2,2645.8,5.29125]
[1724036292731,0.06668786,2646.2,2645.8,2.64562]
[1724036292930,0.06668786,2646.2,2646.0,2.64543]
[1724036293150,1.606,2646.5,2646.0,2.64543]
[1724036293337,0.06669717,2646.1,2646.0,2.64543]
[1724036293533,1.606,2646.5,2646.0,2.64543]
[1724036293926,0.06691782,2646.4,2646.0,2.64543]
[1724036294123,0.06691782,2646.4,2646.2,2.64523]
[1724036294459,0.1281711,2646.6,2646.3,5.319763]
[1724036294618,0.1281711,2646.6,2646.3,5.05524]
[1724036295362,0.06698649,2646.5,2646.3,5.05524]
[1724036296269,0.06698649,2646.5,2646.3,2.4101]
[1724036296472,0.06698649,2646.5,2646.0,5.0555]
[1724036298874,2.52728649,2646.5,2646.0,5.0555]
[1724036303448,5.17235649,2646.5,2645.8,2.64563]
[1724036303642,5.17235649,2646.5,2645.9,2.64559]
[1724036303869,2.64516,2646.4,2645.7,2.64572]
[1724036304069,2.71250368,2646.4,2645.7,2.64572]
[1724036304303,2.71250368,2646.4,2646.0,4.96404]
[1724036304304,0.06734368,2646.4,2646.0,4.96404]
[1724036304643,2.7731011,2646.6,2646.0,4.96404]
[1724036304848,0.06731719,2646.5,2646.1,2.64539]
[1724036305762,0.06731719,2646.5,2646.1,2.64534]
[1724036306283,0.06731719,2646.5,2646.2,2.64528]
[1724036308465,0.06731719,2646.5,2646.0,2.3186]
[1724036308661,0.06731719,2646.5,2646.1,2.64531]
[1724036308868,0.06731719,2646.5,2646.3,2.3256]
[1724036309068,0.06731719,2646.5,2646.3,4.97074]
[1724036309471,0.06731719,2646.5,2646.4,2.6451]
[1724036309981,0.06731719,2646.5,2646.3,4.97073]
[1724036310776,0.06731719,2646.5,2646.3,7.61587]
[1724036310979,0.06731719,2646.5,2646.3,4.97073]
[1724036311907,2.56311719,2646.5,2646.1,2.64535]
[1724036312282,2.56311719,2646.5,2646.0,2.64544]
[1724036313010,2.56311719,2646.5,2645.8,3.43614156]
[1724036313214,2.6453,2646.2,2645.7,0.79050156]
[1724036313411,5.29068,2646.2,2645.7,1.97217127]
[1724036313710,5.14136,2646.0,2645.7,1.97217414]
[1724036313909,2.64579,2645.8,2645.2,3.43674156]
[1724036314107,5.14168,2645.7,2645.1,0.79050156]
[1724036314372,2.56263665,2645.7,2645.1,2.64634]
[1724036314814,2.56263665,2645.7,2645.2,5.29251]
[1724036315816,2.56263665,2645.7,2645.2,2.64622]
[1724036317115,2.56263665,2645.7,2645.0,2.64643]
[1724036317268,2.81890031,2645.7,2645.0,2.64643]
[1724036319006,2.64597,2645.6,2645.0,2.64643]
[1724036319211,2.56263665,2645.7,2645.0,2.64643]
[1724036319510,0.06674456,2645.6,2645.1,2.64639]
[1724036322073,2.71265456,2645.6,2645.1,2.64639]
[1724036322276,0.06674456,2645.6,2645.1,2.64639]
[1724036325370,0.06674456,2645.6,2644.9,2.64659]
[1724036325371,2.71264456,2645.6,2644.9,5.29311]
[1724036325574,2.71264456,2645.6,2645.0,2.64648]
[1724036325773,2.71264456,2645.6,2645.1,2.64637]
[1724036325975,0.06674456,2645.6,2645.1,2.64637]
[1724036326675,0.06674456,2645.6,2645.1,5.2927]
[1724036326870,0.06674456,2645.6,2645.1,2.64633]
[1724036327478,0.06674456,2645.6,2645.0,2.64646]
[1724036327707,0.06674456,2645.6,2645.1,2.64633]
[1724036329918,0.06674456,2645.6,2645.2,2.64629]
[1724036330118,0.06674456,2645.6,2645.0,2.64646]
[1724036330780,0.06674456,2645.6,2645.2,2.64629]
[1724036334888,0.06674456,2645.6,2645.3,0.07560078]
[1724036335104,2.3289,2646.1,2645.5,2.646]
[1724036335430,2.3289,2646.1,2645.6,2.64587]
[1724036335725,0.06689877,2646.0,2645.6,5.29171]
[1724036335932,0.06689877,2646.0,2645.6,2.64584]
[1724036336223,0.06689877,2646.0,2645.6,2.64583]
[1724036336809,1.67489877,2646.0,2645.6,2.64583]
[1724036340230,1.67489877,2646.0,2645.5,2.64599]
[1724036340231,4.32046877,2646.0,2645.5,2.64599]
[1724036340412,4.32046877,2646.0,2645.4,5.29204]
[1724036340612,4.32046877,2646.0,2645.4,2.64601]
[1724036340931,4.32046877,2646.0,2645.5,2.3458]
[1724036340932,0.06689877,2646.0,2645.5,2.3458]
[1724036341125,10.4181711,2646.6,2645.9,4.9914]
[1724036341126,3.9307,2646.5,2645.9,4.9914]
[1724036341294,2.3227,2646.2,2645.7,2.64572]
[1724036341488,0.06463219,2646.1,2645.8,2.64569]
[1724036341890,1.67263219,2646.1,2645.8,2.64569]
[1724036343892,0.06463219,2646.1,2645.9,2.64558]
[1724036344105,0.06463219,2646.1,2646.0,2.6455]
[1724036344396,1.608,2646.3,2646.0,2.910058]
[1724036344623,0.06463219,2646.1,2646.0,2.6455]
[1724036344794,1.608,2646.3,2646.0,2.6455]
[1724036345315,1.608,2646.5,2646.1,2.64538]
[1724036346251,1.608,2646.5,2646.1,2.64533]
[1724036346957,1.608,2646.5,2646.1,5.29066]
[1724036347263,1.608,2646.5,2646.2,2.64528]
[1724036348027,0.1281711,2646.6,2646.3,2.64514]
[1724036348229,0.1281711,2646.6,2646.3,5.29027]
[1724036348430,0.06492633,2646.5,2646.3,7.60457]
[1724036348751,0.06492633,2646.5,2646.3,4.95943]
[1724036350550,0.06492633,2646.5,2646.3,2.64513]
[1724036351424,0.06492633,2646.5,2646.4,2.6451]
[1724036353747,0.06492633,2646.5,2646.3,2.64513]
[1724036354487,0.06492633,2646.5,2646.4,2.6451]
[1724036355987,0.06492633,2646.5,2646.3,5.29026]
[1724036356278,0.06492633,2646.5,2646.3,2.64513]
[1724036356642,0.06492633,2646.5,2646.3,5.29026]
[1724036357361,0.06492633,2646.5,2646.3,2.64513]
[1724036357553,0.06492633,2646.5,2646.3,2.64512]
[1724036358077,0.06492633,2646.5,2646.4,2.6451]
[1724036358947,0.06492633,2646.5,2646.3,2.64512]
[1724036359345,0.06492633,2646.5,2646.3,5.29025]
[1724036360153,0.06492633,2646.5,2646.4,2.6451]
[1724036360353,0.06492633,2646.5,2646.4,5.0684]
[1724036362548,0.06492633,2646.5,2646.4,2.4233]
[1724036362750,0.06492633,2646.5,2646.3,5.29026]
[1724036363955,0.06492633,2646.5,2646.3,2.64512]
[1724036366150,1.608,2646.4,2646.1,2.64535]
[1724036366352,2.4075,2646.3,2645.9,2.64552]
[1724036367396,2.4075,2646.3,2645.7,2.64576]
[1724036367700,1.608,2646.2,2645.7,2.64574]
[1724036368505,5.09282,2646.1,2645.5,2.64593]
[1724036368720,2.4474,2645.9,2645.3,2.64612]
[1724036369065,5.093,2645.9,2645.3,2.64612]
[1724036369368,4.25371,2645.8,2645.3,2.64612]
[1724036370108,0.0644895,2645.7,2645.3,2.64612]
[1724036370512,4.25371,2645.8,2645.3,2.64612]
[1724036370816,0.06445974,2645.7,2645.3,2.64612]
[1724036371027,4.25371,2645.8,2645.1,5.2927]
[1724036371177,0.06438618,2645.6,2645.1,5.2927]
[1724036371376,5.28917594,2645.8,2645.2,2.64629]
[1724036371597,0.06431261,2645.5,2645.2,2.64629]
[1724036371791,5.28917594,2645.8,2645.2,2.64629]
[1724036371993,5.28917594,2645.8,2645.1,2.64632]
[1724036371994,0.06423903,2645.4,2645.1,2.64632]
[1724036372319,5.28917594,2645.8,2645.1,2.64632]
[1724036372525,0.06416545,2645.3,2645.1,2.64632]
[1724036372708,4.25371,2645.8,2645.1,2.64632]
[1724036372906,0.06409186,2645.2,2645.1,2.64632]
[1724036373086,4.25371,2645.8,2645.1,2.64632]
[1724036373276,4.25371,2645.8,2645.1,5.29264]
[1724036373476,0.06445974,2645.7,2645.1,5.29264]
[1724036374318,0.06445974,2645.7,2645.2,2.64626]
[1724036380441,2.3866,2645.6,2645.2,2.64626]
[1724036380735,0.06431261,2645.5,2645.2,2.64626]
[1724036381104,0.06431261,2645.5,2645.3,2.64619]
[1724036384164,0.06431261,2645.5,2645.1,2.64632]
[1724036385754,2.3866,2645.6,2645.1,2.64632]
[1724036385962,2.3866,2645.6,2645.2,2.64628]
[1724036386259,2.3866,2645.6,2645.1,2.64632]
[1724036386408,0.06411757,2645.5,2645.1,2.64632]
[1724036387478,6.73877,2645.4,2644.7,2.64672]
[1724036387679,6.73877,2645.4,2644.5,2.64695]
[1724036387680,2.4846,2645.1,2644.5,2.64695]
[1724036387978,1.67182858,2645.0,2644.5,2.64694]
[1724036388476,1.67182858,2645.0,2644.6,2.64688]
[1724036389146,2.35210144,2645.0,2644.5,2.64694]
[1724036389367,4.99860144,2645.0,2644.5,2.64694]
[1724036390792,4.99860144,2645.0,2644.4,2.64703]
[1724036391090,0.74832014,2644.9,2644.4,2.64703]
[1724036391477,0.06359602,2644.8,2644.4,2.64703]
[1724036392003,4.93477286,2645.0,2644.4,2.64703]
[1724036392185,0.0635224,2644.7,2644.4,2.64703]
[1724036392381,4.93477286,2645.0,2644.4,2.64703]
[1724036392583,0.06344877,2644.6,2644.4,2.64703]
[1724036392789,4.93477286,2645.0,2644.4,2.64703]
[1724036392943,0.06337514,2644.5,2644.4,2.64703]
[1724036393289,2.3027,2644.9,2644.4,2.64703]
[1724036393522,0.06337514,2644.5,2644.4,2.64703]
[1724036393959,2.3027,2644.9,2644.5,2.64696]
[1724036395394,1.608,2644.8,2644.3,2.64712]
[1724036395696,2.3861,2644.7,2644.3,2.64712]
[1724036396050,2.3861,2644.7,2644.1,5.29467]
[1724036396251,1.608,2644.6,2644.1,2.64731]
[1724036396553,1.67159355,2644.6,2644.1,2.64739]
[1724036396760,1.67159355,2644.6,2644.1,5.29473]
[1724036396761,0.06359355,2644.6,2644.1,5.29473]
[1724036396993,0.06359355,2644.6,2644.1,2.64734]
[1724036397893,0.06359355,2644.6,2644.1,5.29467]
[1724036398730,0.06359355,2644.6,2644.1,2.64733]
[1724036399486,0.06359355,2644.6,2644.1,5.29467]
[1724036400499,0.06359355,2644.6,2644.5,5.294]
[1724036400699,0.00435622,2644.6,2644.5,10.4112]
[1724036400902,2.3111,2645.6,2645.1,2.64635]
[1724036401455,3.9191,2645.6,2645.1,2.64632]
[1724036402081,3.9191,2645.6,2645.2,2.64623]
[1724036402286,11.2676,2645.9,2645.3,2.64618]
[1724036402484,12.30524,2645.9,2645.3,2.64618]
[1724036403289,2.6457,2645.8,2645.3,2.64618]
[1724036403493,4.140783,2645.8,2645.3,2.64618]
[1724036404410,4.140783,2645.8,2645.1,5.29268]
[1724036404697,4.140783,2645.8,2645.1,2.64633]
[1724036404993,4.140783,2645.8,2645.2,2.64624]
[1724036405179,1.495083,2645.8,2645.1,2.64633]
[1724036405383,9.6596,2645.9,2645.3,2.64618]
[1724036405581,9.6596,2645.9,2645.3,2.64613]
[1724036405782,9.6596,2645.9,2645.4,2.64608]
[1724036407207,9.6596,2645.9,2645.2,2.64628]
[1724036407208,9.35729112,2645.9,2645.2,2.64628]
[1724036407355,1.230513,2645.8,2645.2,2.64628]
[1724036407558,3.876213,2645.8,2645.2,2.64624]
[1724036407794,2.6457,2645.8,2645.2,2.64624]
[1724036408359,2.64596,2645.6,2645.0,2.64646]
[1724036410252,3.4144,2645.6,2645.0,2.64646]
[1724036410404,0.76844,2645.6,2645.0,2.64643]
[1724036410694,2.3927,2645.7,2645.2,2.64628]
[1724036410904,6.98769112,2645.9,2645.5,2.64593]
[1724036411201,6.98769112,2645.9,2645.5,5.02423]
[1724036411656,2.64586,2645.7,2645.0,2.64643]
[1724036411857,5.29174,2645.7,2645.0,2.64643]
[1724036412057,2.64586,2645.7,2645.0,2.64643]
[1724036412257,3.92862702,2645.7,2645.0,2.64643]
[1724036412458,2.64596,2645.6,2645.0,2.64643]
[1724036412859,2.64631,2645.2,2644.6,2.3783]
[1724036413061,2.4849,2645.1,2644.6,2.64686]
[1724036413914,2.4849,2645.1,2644.2,0.79050156]
[1724036414117,2.6471,2644.4,2643.8,5.00182]
[1724036414282,2.6471,2644.4,2643.6,3.43835156]
[1724036414283,2.64726,2644.3,2643.6,5.00203]
[1724036414684,2.64737,2644.2,2643.6,2.3542]
[1724036415769,0.0432049,2644.1,2643.6,2.3542]
[1724036416012,2.4849,2644.4,2643.6,5.00206]
[1724036416178,2.64704,2644.5,2643.9,2.6476]
[1724036416374,0.04323808,2644.3,2643.9,2.6476]
[1724036416576,0.04355337,2644.4,2643.9,2.6476]
[1724036416784,0.0434061,2644.2,2643.9,2.9623806]
[1724036416985,0.04344656,2644.3,2643.9,2.9623806]
[1724036417189,2.64704,2644.5,2643.9,2.9623806]
[1724036417457,2.2854,2644.1,2643.1,2.3815]
[1724036417771,0.04335757,2644.0,2643.4,2.64801]
[1724036417973,5.64704,2644.5,2643.5,2.3815]
[1724036418332,5.64704,2644.5,2643.8,5.02919]
[1724036418333,2.64704,2644.5,2643.8,5.02919]
[1724036418475,2.64704,2644.5,2643.3,1.97398861]
[1724036418476,1.918,2643.9,2643.3,1.97398861]
[1724036418716,1.918,2643.9,2642.6,0.19037764]
[1724036418717,2.64802,2643.5,2642.7,2.3815]
[1724036418905,0.04227706,2643.4,2642.7,5.03023]
[1724036419118,2.64801,2643.5,2642.9,2.64859]
[1724036419283,2.64801,2643.5,2643.0,0.264859]
[1724036419284,0.04227063,2643.4,2643.0,0.264859]
[1724036419820,2.648,2643.6,2643.0,0.264859]
[1724036420123,2.64779,2643.8,2643.0,0.264859]
[1724036420279,1.918,2643.9,2643.0,0.264859]
[1724036420280,0.04249172,2643.7,2643.1,2.3815]
[1724036420477,2.64747,2644.1,2643.4,2.6481]
[1724036420702,2.64617,2645.4,2643.6,2.64789]
[1724036420703,0.04266556,2644.0,2643.6,2.64789]
[1724036420913,0.04266556,2644.0,2643.4,0.0756484]
[1724036420914,2.64732,2644.2,2643.4,2.64806]
[1724036421112,0.04087714,2643.9,2643.5,0.264806]
[1724036421349,2.6474,2644.1,2643.5,0.264806]
[1724036421583,2.64737,2644.2,2643.2,5.02979]
[1724036421721,3.858,2644.3,2643.2,5.02979]
[1724036421722,2.64787,2643.7,2643.2,2.3815]
[1724036422059,2.64763,2643.9,2643.2,2.3815]
[1724036422060,0.04120383,2643.6,2643.2,2.3815]
[1724036422212,2.64763,2643.9,2643.2,2.3815]
[1724036422428,0.04137055,2643.8,2643.2,5.0298]
[1724036422611,0.04137055,2643.8,2643.2,2.3815]
[1724036422892,0.04137055,2643.8,2642.9,3.0]
[1724036422893,2.64797,2643.6,2642.9,2.2969]
[1724036423015,0.04137055,2643.8,2643.0,0.494556]
[1724036423214,2.64749,2644.1,2642.9,2.2969]
[1724036423463,2.64767,2643.9,2643.2,2.6483]
[1724036423769,0.04136362,2643.8,2643.2,2.6483]
[1724036425326,0.04136362,2643.8,2643.1,5.29664]
[1724036425519,0.04136362,2643.8,2643.2,2.64829]
[1724036426616,0.04136362,2643.8,2643.3,2.6482]
[1724036427063,2.68906362,2643.8,2643.1,2.64831]
[1724036427273,3.22273698,2643.8,2643.1,2.64831]
[1724036428065,2.87983698,2643.8,2643.0,2.6485]
[1724036428270,2.87983698,2643.8,2642.9,4.94545]
[1724036428271,2.64788,2643.7,2643.1,2.64839]
[1724036428429,6.98769112,2644.0,2643.1,2.64839]
[1724036428430,0.04121627,2643.6,2643.3,2.64819]
[1724036428638,9.63520112,2644.0,2643.4,0.264819]
[1724036428842,2.68892105,2643.9,2643.4,0.264819]
[1724036429168,2.68135561,2643.9,2643.4,0.264819]
[1724036429547,2.68135561,2643.9,2643.4,2.632019]
[1724036429747,2.68135561,2643.9,2643.1,7.7699]
[1724036429988,2.68135561,2643.9,2643.1,5.12153]
[1724036430162,0.04131105,2643.9,2643.3,2.64818]
[1724036431033,0.04131105,2643.9,2643.4,2.64808]
[1724036431231,0.04131105,2643.9,2643.3,2.64818]
[1724036431471,0.04131105,2643.9,2643.4,2.6481]
[1724036432044,0.04131105,2643.9,2642.4,5.04332]
[1724036432045,2.64813,2643.4,2642.4,5.04332]
[1724036432246,0.0410948,2643.3,2642.4,5.04332]
[1724036432561,2.64837,2643.2,2642.6,2.64889]
[1724036432869,2.64837,2643.2,2642.4,5.04332]